[Event "Swiss Championship 2024"]
[Site "Flims"]
[Date "2024.07.15"]
[Round "3.4"]
[White "Georgiadis, Ioannis"]
[Black "Baenziger, Fabian"]
[Result "1/2-1/2"]
[ECO "A14"]
[WhiteElo "2483"]
[BlackElo "2410"]
[Annotator "TA"]
[PlyCount "86"]
[EventDate "2024.07.10"]
[EventType "tourn"]
[EventCountry "SUI"]
[SourceTitle "playchess.com"]
[Source "ChessBase"]
[SourceQuality "1"]
[TimeControl "40/5400+30:1800+30"]

{[%evp 16,86,26,13,27,10,12,5,30,34,36,13,34,21,46,36,54,58,69,54,45,52,55,35,50,52,96,135,118,125,131,131,120,117,122,78,101,108,105,107,163,156,150,150,165,108,86,45,48,43,45,29,58,53,58,60,69,68,61,73,71,56,59,0,0,0,0,0,0,0,0,0,0]} 1. d4 {[%emt 0:00:06]} Nf6 {[%emt 0:00:19]} 2. c4 {[%emt 0:00:19]} e6 {[%emt 0:00:16]} 3. Nf3 {[%emt 0:00:04]} d5 {[%emt 0:00:26]} 4. g3 {[%emt 0:00:07]} Be7 {[%emt 0:05:30]} 5. Bg2 {[%emt 0:00:43]} O-O {[%emt 0:00:05]} 6. O-O {[%emt 0:00:28]} a5 {[%emt 0:00:19]} 7. Nc3 {[%emt 0:02:37]} c6 {[%emt 0:00:18]} 8. b3 {[%emt 0:00:45]} b6 {[%emt 0:00:12]} 9. Bb2 {[%emt 0:00:06]} Ba6 {[%emt 0:00:36]} 10. a3 {[%emt 0:00:13]} Nbd7 {[%emt 0:05:35]} 11. Re1 {[%emt 0:04:04]} Rc8 {[%emt 0:07:37]} 12. Nd2 {[%emt 0:03:34][%cal Bf3d2,Bd2f1,Bf1e3,Be3f5][%mdl 32]} c5 {[%emt 0:07:40]} 13. e3 {[%emt 0:01:39][%cal Rc4d5]} cxd4 {[%emt 0:06:53]} 14. exd4 {[%emt 0:00:21][%cal Rc4d5]} Nb8 {[%emt 0:00:12][%cal Rd5c4,Bd7b8,Bb8a6,Ba6c7,Bc7b5][%mdl 32]} 15. cxd5 {[%emt 0:07:58]} exd5 {[%emt 0:02:41]} 16. Nf1 {[%emt 0:01:38]} Bb7 {[%emt 0:13:01]} 17. Ne3 {[%emt 0:01:51]} Na6 {[%emt 0:00:07]} 18. Rc1 {[%emt 0:08:29][%cal Oc3d5] Ncxd5! ist eine echte Drohung.} Nc7 {[%emt 0:04:08]} 19. Na4 {[%emt 0:02:57]} Nb5 {[%emt 0:08:13]} 20. Nf5 {[%emt 0:11:40]} Rxc1 {[%emt 0:02:32]} 21. Qxc1 {[%emt 0:02:24]} ({Viel schwächer wäre} 21. Bxc1 $6 Bxa3 22. Bxa3 Nxa3 $11) ({Ein No Go ist} 21. Nxe7+ Qxe7 22. Bxc1 (22. Qxc1 Qd6 $11) 22... Qd6 $11) 21... Bd6 {[%emt 0:00:03] [#]} 22. Bf1 $1 $36 {[%emt 0:04:47][%mdl 2048] Läuft bei Weiss.} Na7 {[%emt 0:01:03]} 23. Qg5 {[%emt 0:02:42][%csl Gf5][%cal Rg5g7]} g6 {[%emt 0:00:04]} 24. Bc1 {[%emt 0:09:14]} Nc8 {[%emt 0:04:31]} 25. Qh4 {[%emt 0:05:54] Weiß steht deutlich aktiver.} Ne4 {[%emt 0:01:33] Verhindert Bg5} (25... gxf5 $2 {ist das falsche Schlagen.} 26. Bg5 Be7 27. Rxe7 $18) 26. Qxd8 {[%emt 0:04:20]} Rxd8 {[%emt 0:00:04]} 27. Nxd6 {[%emt 0:00:09]} Rxd6 {[%emt 0:03:09]} (27... Nexd6 $16 {war angesagt.} 28. Bg5 Rf8) 28. f3 $18 {[%emt 0:03:32]} Nf6 {[%emt 0:00:04]} 29. Bf4 {[%emt 0:03:00] Schwarz hat schwache schwarze Felder} Rc6 {[%emt 0:00:07]} 30. Bh3 {[%emt 0:00:45]} (30. Bb5 $18 Re6 31. Rxe6 fxe6 32. Bc7) 30... Nd6 $16 {[%emt 0:06:27]} 31. Bxd6 {[%emt 0:04:39]} Rxd6 {[%emt 0:00:05]} 32. Rc1 {[%emt 0:00:08]} Ba6 {[%emt 0:10:31]} 33. Rc7 {[%emt 0:00:46]} Bb5 {[%emt 0:00:15]} 34. Nc3 {[%emt 0:00:06]} Be8 {[%emt 0:00:52]} 35. b4 {[%emt 0:05:43]} axb4 {[%emt 0:02:45]} 36. axb4 {[%emt 0:00:05][%cal Ba3b4,Bb4b5][%mdl 32]} Rc6 {[%emt 0:00:17]} 37. Rxc6 {[%emt 0:00:58]} Bxc6 $14 {[%emt 0:00:05][%mdl 4096] Endspiel. KBN-KBN} 38. b5 {[%emt 0:00:32]} Be8 {[%emt 0:00:05]} 39. f4 {[%emt 0:08:04]} (39. g4 $14) 39... Kf8 $11 {[%emt 0:01:01] Die Stellung ist ausgeglichen.} 40. Bg2 {[%emt 0:00:12]} Ke7 {[%emt 0:02:00]} 41. Bxd5 {[%emt 0:32:11]} Bxb5 $1 {[%emt 0:31:30]} 42. Bxf7 {[%emt 0:00:00]} Kxf7 {[%emt 0:00:00]} 43. Nxb5 {[%emt 0:00:00]} Ke6 {[%emt 0:00:00] Gewichteter Fehlerwert: Weiß=0.09 (makellos) /Schwarz=0.12 (sehr präzise) .  Fehler:       	Weiß=2     	Schwarz=1     Ungenau:       	Weiß=2     	Schwarz=2     OK:         	Weiß=15    	Schwarz=14    Bester:       	Weiß=3     	Schwarz=2     Stark:        	Weiß=1     	Schwarz=1} 1/2-1/2

[Event "Swiss Championship 2024"]
[Site "Flims"]
[Date "2024.07.15"]
[Round "3.5"]
[White "Klauser, Markus"]
[Black "Georgiadis, Nico"]
[Result "0-1"]
[ECO "C70"]
[WhiteElo "2358"]
[BlackElo "2512"]
[Annotator "TA"]
[PlyCount "66"]
[EventDate "2024.07.10"]
[EventType "tourn"]
[EventCountry "SUI"]
[SourceTitle "playchess.com"]
[Source "ChessBase"]
[SourceQuality "1"]
[TimeControl "40/5400+30:1800+30"]

{[%evp 16,66,27,35,36,16,27,32,42,0,0,-33,-27,-16,-35,-111,-116,-305,6,14,96,120,116,0,0,0,0,-255,-239,-240,-239,-356,-326,-350,-362,-353,-340,-471,-445,-449,-447,-441,-435,-418,-414,-788,-770,-797,-611,-751,-751,-1852,-1751]} 1. e4 {[%emt 0:00:05]} e5 {[%emt 0:00:07]} 2. Nf3 {[%emt 0:00:09]} Nc6 {[%emt 0:00:06]} 3. Bb5 {[%emt 0:00:10][%cal Bf1b5,Bb5a4,Ba4b3][%mdl 32]} a6 {[%emt 0:00:07]} 4. Ba4 {[%emt 0:00:06]} b5 {[%emt 0:00:06]} 5. Bb3 {[%emt 0:00:06]} Na5 {[%emt 0:00:04]} 6. O-O {[%emt 0:02:19]} d6 {[%emt 0:00:05]} 7. d4 {[%emt 0:02:12]} exd4 {[%emt 0:00:11]} 8. Nxd4 {[%emt 0:01:13]} Bb7 {[%emt 0:00:18]} 9. Bd2 {[%emt 0:15:11]} Nxb3 {[%emt 0:00:57]} 10. axb3 {[%emt 0:00:55]} g6 {[%emt 0:22:21][%cal Of8g7]} 11. Bc3 {[%emt 0:04:19][%cal Od4b5] Droht Nxb5! und aus.} Nf6 $1 {[%emt 0:00:28][%cal Oc7c5] Weiß steht etwas besser.} 12. Re1 {[%emt 0:05:52]} Bg7 {[%emt 0:17:04][%cal Oe8g8]} 13. e5 {[%emt 0:10:49]} dxe5 {[%emt 0:09:53]} 14. Rxe5+ {[%emt 0:00:22]} Kf8 {[%emt 0:00:04][%cal Oc7c5] [#] Droht stark ...c5!} 15. Bb4+ {[%emt 0:00:26]} ({Besser ist} 15. Re1 $1 $15) 15... Kg8 $17 {[%emt 0:00:06]} 16. Nc3 {[%emt 0:01:26]} (16. Re1 $17 {war angesagt.}) 16... Nd7 $2 {[%emt 0:07:04]} ({Vorzuziehen ist} 16... Ng4 $1 $19 17. Re8+ Qxe8 18. Qxg4 Qc8 19. Qxc8+ Rxc8) 17. Rd5 $11 {[%emt 0:01:38][%cal Od4f5] Schwarz muss nun Nf5! beachten.} Bxd5 {[%emt 0:04:57]} (17... h5 $11) 18. Nxd5 $16 {[%emt 0:00:12]} Bxd4 {[%emt 0:12:24]} 19. Ne7+ {[%emt 0:01:24]} (19. Be7 Bxf2+ 20. Kxf2 Qb8 $17) (19. Qxd4 $16 {Ne7+ ist eine echte Drohung.} c5 20. Bxc5 Nxc5 21. Qxc5) 19... Kg7 $11 {[%emt 0:00:40]} 20. Qxd4+ {[%emt 0:01:13]} Nf6 {[%emt 0:00:22]} 21. Qh4 {[%emt 0:03:47][%mdl 8192]} (21. Qe5 $1 $11 {und Weiss ist OK.} Re8 22. g4) 21... Re8 {[%emt 0:02:46]} 22. Re1 {[%emt 0:02:23][%cal Ob4c3]} Ng8 {[%emt 0:01:28][%cal Oc7c5]} 23. g4 {[%emt 0:25:56]} (23. f3 {kämpft weiter.}) 23... a5 $19 {[%emt 0:12:36]} 24. Bc3+ {[%emt 0:00:41]} f6 {[%emt 0:00:03]} 25. g5 {[%emt 0:01:40] [#]} Ra6 {[%emt 0:00:20]} (25... Rxe7 $2 {verliert.} 26. gxf6+ (26. Bxf6+ Kf8 $15) 26... Kf7 27. Qxh7+ (27. fxe7 Nxe7 28. Qxh7+ Ke8 $18) 27... Kf8 28. fxe7+ $18) 26. Bxf6+ {[%emt 0:10:01]} Nxf6 {[%emt 0:04:59]} 27. Qh6+ {[%emt 0:00:10]} Kh8 {[%emt 0:00:10]} 28. gxf6 {[%emt 0:02:32]} Rxf6 {[%emt 0:00:04]} 29. Qe3 {[%emt 0:02:29]} Qd6 {[%emt 0:00:55] Und ...Rf7 würde nun gewinnen.} 30. Kh1 {[%emt 0:03:24]} (30. c4 $142) 30... Ref8 {[%emt 0:00:09] Schwarz steht klar auf Gewinn.} 31. Re2 {[%emt 0:00:18]} Kg7 {[%emt 0:00:24] Zielt auf ...Rf3 ab.} 32. c4 {[%emt 0:00:16]} Rf3 {[%emt 0:00:43]} 33. Qe4 {[%emt 0:00:32]} Rxf2 {[%emt 0:04:59] Gewichteter Fehlerwert: Weiß=1.09/Schwarz=0.32.  Verlustzug:     	Weiß=2     	---        Gewinn verpasst:   	---       	Schwarz=1     Fehler:       	Weiß=4     	Schwarz=1     Ungenau:       	Weiß=3     	---        OK:         	Weiß=5     	Schwarz=7     Bester:       	Weiß=1     	Schwarz=6     Stark:        	---       	Schwarz=1} 0-1

[Event "Swiss Championship 2024"]
[Site "Flims"]
[Date "2024.07.16"]
[Round "4.1"]
[White "Bogner, Sebastian"]
[Black "Georgiadis, Nico"]
[Result "1/2-1/2"]
[ECO "C67"]
[WhiteElo "2547"]
[BlackElo "2512"]
[Annotator "TA"]
[PlyCount "40"]
[EventDate "2024.07.10"]
[EventType "tourn"]
[EventCountry "SUI"]
[SourceTitle "playchess.com"]
[Source "ChessBase"]
[SourceQuality "1"]
[TimeControl "40/5400+30:1800+30"]

{[%evp 18,40,14,19,12,18,9,10,15,16,12,2,9,0,15,11,16,8,14,0,4,0,9,0,8]} 1. e4 {[%emt 0:00:02]} e5 {[%emt 0:00:07]} 2. Nf3 {[%emt 0:00:10]} Nc6 {[%emt 0:00:07]} 3. Bb5 {[%emt 0:00:05]} Nf6 {[%emt 0:00:06]} 4. O-O {[%emt 0:02:39][%cal Bh1f1,Bf1e1,Be1e5][%mdl 32]} Nxe4 {[%emt 0:00:06]} 5. Re1 {[%emt 0:00:40]} Nd6 {[%emt 0:00:09]} 6. Nxe5 {[%emt 0:00:48]} Be7 {[%emt 0:00:05]} 7. Bf1 {[%emt 0:01:02]} Nxe5 {[%emt 0:00:10]} 8. Rxe5 {[%emt 0:00:05]} O-O {[%emt 0:00:06]} 9. d4 {[%emt 0:02:41]} Bf6 {[%emt 0:00:10]} 10. Re1 {[%emt 0:00:08] The position is equal.} Re8 {[%emt 0:00:31]} 11. c3 {[%emt 0:04:50]} Rxe1 {[%emt 0:09:06]} 12. Qxe1 {[%emt 0:00:30]} Ne8 {[%emt 0:01:52][%cal Bd6e8,Be8g7,Bg7f5][%mdl 32]} 13. Bf4 {[%emt 0:04:33]} d5 {[%emt 0:00:16]} 14. Bd3 {[%emt 0:00:04]} g6 {[%emt 0:02:35]} 15. Nd2 {[%emt 0:00:04]} c6 {[%emt 0:01:05]} 16. Nf3 {[%emt 0:01:36]} Ng7 {[%emt 0:00:13]} 17. Bh6 {[%emt 0:10:42]} Nf5 {[%emt 0:04:18]} 18. Bf4 {[%emt 0:06:19]} Ng7 {[%emt 0:00:08]} 19. Bh6 {[%emt 0:00:06]} Nf5 {[%emt 0:00:04]} 20. Bf4 {[%emt 0:00:52]} Ng7 {An uneventful encounter.   Weighted Error Value: White=0.04 (flawless) /Black=0.02 (flawless) .  OK:         	White=4     	Black=7} 1/2-1/2

[Event "Swiss Championship 2024"]
[Site "Flims"]
[Date "2024.07.16"]
[Round "4.2"]
[White "Baenziger, Fabian"]
[Black "Klauser, Markus"]
[Result "1-0"]
[ECO "E17"]
[WhiteElo "2410"]
[BlackElo "2358"]
[Annotator "RC"]
[PlyCount "47"]
[EventDate "2024.07.10"]
[EventType "tourn"]
[EventCountry "SUI"]
[SourceTitle "playchess.com"]
[Source "ChessBase"]
[SourceQuality "1"]
[TimeControl "40/5400+30:1800+30"]

1. Nf3 {[%emt 0:00:06]} Nf6 {[%emt 0:00:49]} 2. c4 {[%emt 0:00:28]} e6 {[%emt 0:00:18]} 3. g3 {[%emt 0:00:32]} b6 {[%emt 0:00:53]} 4. Bg2 {[%emt 0:00:16]} Bb7 {[%emt 0:00:10]} 5. O-O {[%emt 0:00:07]} Be7 {[%emt 0:01:13]} 6. d4 {[%emt 0:00:40]} O-O {[%emt 0:00:18]} 7. Re1 {[%emt 0:00:33]} d5 {[%emt 0:01:36]} 8. cxd5 {[%emt 0:00:20]} exd5 {[%emt 0:00:26]} 9. Nc3 {[%emt 0:00:13]} Nbd7 {[%emt 0:10:28]} 10. Bf4 {[%emt 0:00:16]} c6 {[%emt 0:09:09]} 11. Rc1 {[%emt 0:04:03]} Re8 {[%emt 0:00:48]} 12. h4 {[%emt 0:11:40]} h6 {[%emt 0:03:11]} 13. e3 {[%emt 0:06:57]} a5 {[%emt 0:18:56]} 14. a3 {[%emt 0:06:02]} Bf8 {[%emt 0:03:27]} 15. Nd2 {[%emt 0:06:42]} b5 {[%emt 0:01:17]} 16. Qb3 {[%emt 0:17:34]} Nb6 {[%emt 0:08:07]} 17. Nxb5 {[%emt 0:02:08]} Nc4 {[%emt 0:04:29]} 18. Nc7 {[%emt 0:02:32]} Nxd2 {[%emt 0:03:14]} 19. Qxb7 {[%emt 0:00:42]} Rb8 {[%emt 0:00:18]} 20. Qxc6 {[%emt 0:00:29]} Rc8 {[%emt 0:00:27]} 21. Qa6 {[%emt 0:02:06]} Re4 {[%emt 0:02:11]} 22. Qd3 {[%emt 0:02:02]} Rxf4 {[%emt 0:02:16]} 23. exf4 {[%emt 0:00:31]} Nc4 {[%emt 0:02:29]} 24. Nxd5 {[%emt 0:01:02]} 1-0

[Event "Swiss Championship 2024"]
[Site "Flims"]
[Date "2024.07.16"]
[Round "4.3"]
[White "Fischer, Daniel"]
[Black "Georgiadis, Ioannis"]
[Result "0-1"]
[ECO "C84"]
[WhiteElo "2372"]
[BlackElo "2483"]
[Annotator "TA"]
[PlyCount "102"]
[EventDate "2024.07.10"]
[EventType "tourn"]
[EventCountry "SUI"]
[SourceTitle "playchess.com"]
[Source "ChessBase"]
[SourceQuality "1"]
[TimeControl "40/5400+30:1800+30"]

{[%evp 16,102,24,31,29,21,41,29,29,25,22,23,22,26,18,18,18,24,22,25,24,22,21,0,3,-10,-8,-6,-4,-7,0,-11,0,0,0,0,0,0,0,0,0,0,0,-11,0,-15,0,0,0,-250,-240,-403,-405,-370,-255,-234,-39,-820,-727,-820,-820,-820,-767,-1050,-738,-1310,-1296,-1398,-1399,-1485,-1238,-1550,-1164,-2441,-1919,-2216,-1060,-804,-736,-29975,-29976,-29976,-29977,-29977,-29977,-29978,-29979,-29977,-29977]} 1. e4 {[%emt 0:00:04]} e5 {[%emt 0:00:04]} 2. Nf3 {[%emt 0:00:07]} Nc6 {[%emt 0:00:04]} 3. Bb5 {[%emt 0:00:06]} a6 {[%emt 0:00:15]} 4. Ba4 {[%emt 0:00:05]} Nf6 {[%emt 0:00:10]} 5. O-O {[%emt 0:00:07]} d6 {[%emt 0:00:23]} 6. Re1 {[%emt 0:01:58]} Bd7 {[%emt 0:00:35]} 7. Bxc6 {[%emt 0:01:23]} Bxc6 {[%emt 0:00:23]} 8. Nc3 {[%emt 0:00:06]} Be7 {[%emt 0:00:14]} 9. d4 {[%emt 0:00:15]} exd4 {[%emt 0:00:07]} 10. Nxd4 {[%emt 0:00:05]} Bd7 {[%emt 0:00:15]} 11. Qf3 {[%emt 0:01:13]} O-O {[%emt 0:00:10] White has an edge.} 12. Bf4 {[%emt 0:06:25]} b5 {[%emt 0:01:17][%cal Bb7b5,Bb5b4][%mdl 32]} 13. e5 {[%emt 0:11:02]} dxe5 {[%emt 0:01:58]} 14. Bxe5 {[%emt 0:00:06]} b4 {[%emt 0:00:51]} 15. Nd5 {[%emt 0:07:09]} Nxd5 {[%emt 0:00:18]} 16. Qxd5 {[%emt 0:00:05][%cal Oe5c7]} c5 {[%emt 0:00:28]} 17. Nc6 {[%emt 0:01:44]} Bxc6 {[%emt 0:00:07]} 18. Qxc6 {[%emt 0:00:04]} Re8 {[%emt 0:00:20]} 19. Rad1 {[%emt 0:06:59]} Qa5 {[%emt 0:00:55]} 20. Qd5 {[%emt 0:10:13]} Bf8 {[%emt 0:04:11] next ...Rad8 is good for Black.} 21. Qc4 {[%emt 0:07:58]} Rad8 {[%emt 0:06:36] Wards off Rd7} 22. Rxd8 {[%emt 0:06:42]} Rxd8 {[%emt 0:02:21]} 23. h3 {[%emt 0:09:54]} Re8 {[%emt 0:04:42][%cal Ob4b3] Strongly threatening ...b3!} 24. Re3 {[%emt 0:01:50]} Qb5 {[%emt 0:03:39]} 25. Qg4 {[%emt 0:09:39]} c4 {[%emt 0:28:36]} 26. Bd4 {[%emt 0:00:53]} h5 {[%emt 0:04:39]} 27. Qe2 {[%emt 0:02:28]} Rxe3 {[%emt 0:00:11]} 28. Bxe3 $11 {[%emt 0:00:36][%mdl 4096] Endgame. KQB-KQB} Qd5 {[%emt 0:01:02]} 29. c3 {[%emt 0:07:52]} a5 {[%emt 0:01:09]} 30. Qd2 {[%emt 0:03:22]} Qf5 {[%emt 0:05:24]} (30... Qxd2 {simplifies} 31. Bxd2 b3 32. a4 Kh7) 31. Qd8 {[%emt 0:00:27]} b3 {[%emt 0:01:11]} 32. axb3 {[%emt 0:02:58]} (32. a4 $11) 32... cxb3 $19 {[%emt 0:00:05] ...a4 would now be deadly.} 33. Kh2 $2 {[%emt 0:02:28]} (33. Bc1 {is the only way for White.}) 33... a4 {[%emt 0:01:23][%cal Oa4a3]} 34. Qb8 {[%emt 0:00:31]} h4 {[%emt 0:01:33][%cal Oa4a3]} 35. c4 {[%emt 0:00:33] [#]} f6 $2 {[%emt 0:03:37]} (35... g5 $1 $19 {Threatens to win with ...f6.} 36. Kh1 Qc2 (36... Qb1+ $2 37. Kh2 $19)) 36. c5 $2 {[%emt 0:00:31][%mdl 8192] [#] Now White is beyond hope.} (36. f4 $15) 36... Qe5+ $1 {[%emt 0:01:05]} 37. Qxe5 {[%emt 0:00:02]} fxe5 {[%emt 0:00:05] KB-KB} 38. c6 {[%emt 0:00:06]} Bd6 {[%emt 0:00:03]} 39. Bc5 {[%emt 0:01:04]} Bc7 {[%emt 0:00:05] aiming for ...Kf7.} (39... Bxc5 $2 {loses.} 40. c7 Kh7 41. c8=Q $18 (41. c8=B $2 {is the wrong capture.} Kg6 $19)) 40. Kg1 {[%emt 0:00:34]} Kf7 {[%emt 0:00:56] Hoping for ...Ke6.} 41. Kf1 {[%emt 0:01:38]} Ke6 {[%emt 0:02:07]} 42. Ke2 {[%emt 0:00:21]} Kd5 {[%emt 0:01:51]} 43. Bf8 {[%emt 0:02:45]} Kxc6 {[%emt 0:02:41]} 44. Kd3 {[%emt 0:02:06]} Kd5 {[%emt 0:02:02] White must now prevent ...Bb6.} 45. f3 {[%emt 0:03:47]} g6 {[%emt 0:00:34]} (45... Bb6 $142 46. Kd2 Bd4) 46. Be7 {[%emt 0:08:40]} Bb6 {[%emt 0:01:37]} 47. Kc3 {[%emt 0:00:56]} Bd4+ {[%emt 0:00:11] Black mates.} 48. Kb4 {[%emt 0:00:04]} Bxb2 {[%emt 0:00:23]} 49. Kxa4 {[%emt 0:00:05]} Kc4 {[%emt 0:00:05]} 50. Bg5 {[%emt 0:00:20]} Bd4 {[%emt 0:00:34]} 51. Ka3 {[%emt 0:00:04]} Kc3 {[%emt 0:00:17] Weighted Error Value: White=0.68/Black=0.25 (precise) .  Loses game:     	White=2     	---        Missed win:     	---       	Black=1      Mistake:       	White=1     	---        Inaccurate:     	---       	Black=1      OK:         	White=9     	Black=15     Best:        	White=2     	---        Strong:       	---       	Black=1} 0-1

[Event "Swiss Championship 2024"]
[Site "Flims"]
[Date "2024.07.16"]
[Round "4.4"]
[White "Peng, Li Min"]
[Black "Kurmann, Oliver"]
[Result "1/2-1/2"]
[ECO "B22"]
[WhiteElo "2562"]
[BlackElo "2428"]
[Annotator "TA"]
[PlyCount "73"]
[EventDate "2024.07.10"]
[EventType "tourn"]
[EventCountry "SUI"]
[SourceTitle "playchess.com"]
[Source "ChessBase"]
[SourceQuality "1"]
[TimeControl "40/5400+30:1800+30"]

{[%evp 13,73,7,8,10,20,7,20,4,2,2,18,0,0,3,0,0,0,0,0,0,0,0,0,-5,0,-24,-25,-31,-16,-16,-17,-42,0,0,0,0,12,0,81,68,64,-18,28,20,43,43,40,47,49,52,54,51,54,49,61,50,56,44,40,49,49,4]} 1. e4 {[%emt 0:00:24][%cal Be2e4,Be4e5][%mdl 32]} c5 {[%emt 0:00:09]} 2. c3 {[%emt 0:00:12]} Nf6 {[%emt 0:00:15]} 3. e5 {[%emt 0:00:17]} Nd5 {[%emt 0:00:10]} 4. d4 {[%emt 0:00:44]} cxd4 {[%emt 0:00:11]} 5. Nf3 {[%emt 0:00:09]} e6 {[%emt 0:00:43]} 6. cxd4 {[%emt 0:00:14]} d6 {[%emt 0:00:08]} 7. Bc4 {[%emt 0:00:18]} Be7 {[%emt 0:00:35]} 8. O-O {[%emt 0:00:19]} O-O {[%emt 0:00:07]} 9. Qe2 {[%emt 0:00:07]} Bd7 {[%emt 0:00:46]} 10. Bxd5 {[%emt 0:02:54] The position is equal.} exd5 {[%emt 0:00:02]} 11. Nc3 {[%emt 0:00:09]} Be6 {[%emt 0:00:23]} 12. Rd1 {[%emt 0:02:18]} a6 {[%emt 0:01:52]} 13. Bf4 {[%emt 0:00:36]} Nc6 {[%emt 0:00:10]} 14. Rac1 {[%emt 0:02:54]} Re8 {[%emt 0:03:46]} 15. h3 {[%emt 0:00:27]} h6 {[%emt 0:05:17]} 16. Qd2 {[%emt 0:00:25]} Bf8 {[%emt 0:00:51]} 17. Re1 {[%emt 0:04:38]} dxe5 {[%emt 0:03:19]} 18. Nxe5 {[%emt 0:02:06][%cal Bf3e5,Be5d3,Bd3c5][%mdl 32]} Rc8 {[%emt 0:05:24]} 19. Na4 {[%emt 0:01:41]} Bb4 {[%emt 0:03:57]} 20. Nc3 {[%emt 0:00:02]} Na5 {[%emt 0:10:58]} (20... Ba5 {simplifies} 21. Nxc6 Rxc6 22. a3 b5) 21. Qd3 {[%emt 0:16:38]} Nc4 {[%emt 0:00:29]} 22. Qg3 {[%emt 0:02:17]} Kh8 {[%emt 0:11:19]} 23. Nd3 {[%emt 0:18:42] Excellent horsemanship.} Bf8 {[%emt 0:00:16]} 24. b3 {[%emt 0:00:21]} Na5 {[%emt 0:14:06]} 25. Nc5 {[%emt 0:06:48]} Qb6 {[%emt 0:03:17]} (25... Bxc5 $6 26. dxc5 Nc6 27. Na4 $14) (25... Nc6 $11 {remains equal.}) 26. N3a4 $36 {[%emt 0:04:07][%mdl 2048] White is pushing. White is much more active.} Qb4 {[%emt 0:03:45]} 27. Qd3 {[%emt 0:20:34]} (27. a3 $14 Qb5 (27... Qxa3 28. Bd2 $16) (27... Qxd4 $2 28. Be5 $18) 28. Bd6 Bxd6 29. Qxd6) 27... Nc6 {[%emt 0:02:28]} ({But not} 27... Rxc5 $2 28. Bd2 Rxc1 29. Bxb4 Rxe1+ 30. Bxe1 $18) (27... Bxc5 $142 28. Bd2 (28. Nxc5 $2 {loses.} Rxc5 29. Bd2 Qb5 $19) 28... Qxd4 29. Nxc5 Qxd3 30. Nxd3 Rxc1 31. Rxc1 Nc6) 28. Red1 $11 {[%emt 0:00:08][%cal Oa2a3]} Nd8 {[%emt 0:13:55]} 29. Bd2 {[%emt 0:01:54] White is slightly better.} (29. Kh2 {with more complications.} Nc6 30. a3 Qxa3 31. Nxb7 Ne5 32. dxe5 Qb4 33. Be3) 29... Qb5 {[%emt 0:00:12]} 30. Qxb5 {[%emt 0:00:33]} axb5 {[%emt 0:00:01]} 31. Nc3 {[%emt 0:01:06]} Bxc5 {[%emt 0:06:15]} 32. dxc5 {[%emt 0:00:04]} Rxc5 {[%emt 0:00:09]} 33. Be3 {[%emt 0:00:03]} d4 {[%emt 0:02:26]} 34. Bxd4 {[%emt 0:00:02]} Rh5 {[%emt 0:00:18]} 35. f3 {[%emt 0:08:16]} b4 {[%emt 0:00:59]} 36. Ne4 {[%emt 0:00:43]} Nc6 {[%emt 0:03:14]} 37. Bf2 {[%emt 0:05:50] Weighted Error Value: White=0.09 (flawless) /Black=0.11 (very precise) .  Mistake:       	White=1     	Black=2      Inaccurate:     	White=1     	Black=1      OK:         	White=14    	Black=15     Best:        	White=1     	---} 1/2-1/2